[Event "*** SCC Grand Prix: Titled Tuesday Blitz"]
[Site "Chess.com"]
[Date "2020.10.06"]
[Round "4"]
[White "OhanyanEminChess"]
[Black "Indianlad"]
[Result "0-1"]
[WhiteElo "2572"]
[BlackElo "2933"]
[TimeControl "180+1"]
[EndTime "10:38:05 PDT"]
[Termination "Indianlad won by resignation"]

1. e4 {[%clk 0:03:00.9]} 1... c6 {[%clk 0:02:59.7]} 2. d4 {[%clk 0:02:56.7]}
2... d5 {[%clk 0:03:00.5]} 3. Nc3 {[%clk 0:02:57.6]} 3... dxe4 {[%clk
0:03:00.4]} 4. Nxe4 {[%clk 0:02:58.5]} 4... Bf5 {[%clk 0:03:00.1]} 5. Ng3 {[%clk
0:02:58.6]} 5... Bg6 {[%clk 0:03:00.7]} 6. h4 {[%clk 0:02:56.9]} 6... h6 {[%clk
0:03:01.1]} 7. Nf3 {[%clk 0:02:56.4]} 7... Nf6 {[%clk 0:03:01.7]} 8. Ne5 {[%clk
0:02:54.5]} 8... Bh7 {[%clk 0:03:01.5]} 9. Bd3 {[%clk 0:02:54]} 9... Bxd3 {[%clk
0:03:00.8]} 10. Qxd3 {[%clk 0:02:54.9]} 10... e6 {[%clk 0:03:01.4]} 11. Bd2
{[%clk 0:02:49.9]} 11... Nbd7 {[%clk 0:03:00.8]} 12. Nxd7 {[%clk 0:02:47]} 12...
Qxd7 {[%clk 0:03:00.9]} 13. Ne4 {[%clk 0:02:46]} 13... O-O-O {[%clk 0:02:59.6]}
14. Nxf6 {[%clk 0:02:40.8]} 14... gxf6 {[%clk 0:02:59.6]} 15. Be3 {[%clk
0:02:40.6]} 15... Qd5 {[%clk 0:02:47.8]} 16. Rg1 {[%clk 0:02:38.5]} 16... f5
{[%clk 0:02:46.9]} 17. a3 {[%clk 0:02:25.7]} 17... Bg7 {[%clk 0:02:46.1]} 18.
O-O-O {[%clk 0:02:20.5]} 18... Rd7 {[%clk 0:02:41.3]} 19. c4 {[%clk 0:02:14.8]}
19... Qd6 {[%clk 0:02:40]} 20. g3 {[%clk 0:02:05.3]} 20... Rhd8 {[%clk
0:02:38.7]} 21. Qc2 {[%clk 0:01:20]} 21... Qc7 {[%clk 0:02:15.1]} 22. Rd2 {[%clk
0:01:17.9]} 22... Bxd4 {[%clk 0:02:10.3]} 23. Bxh6 {[%clk 0:01:10.7]} 23... c5
{[%clk 0:01:52.2]} 24. Rgd1 {[%clk 0:01:03.2]} 24... Qc6 {[%clk 0:01:51.6]} 25.
Kb1 {[%clk 0:00:52.5]} 25... a6 {[%clk 0:01:51.3]} 26. Rd3 {[%clk 0:00:33.6]}
26... e5 {[%clk 0:01:47.1]} 27. Be3 {[%clk 0:00:25.7]} 27... Qe4 {[%clk
0:01:37.7]} 28. R3d2 {[%clk 0:00:19.4]} 28... Qf3 {[%clk 0:01:02.7]} 29. Qd3
{[%clk 0:00:11]} 29... Bxe3 {[%clk 0:00:58.9]} 30. Qxd7+ {[%clk 0:00:05.4]}
30... Rxd7 {[%clk 0:00:59.3]} 31. Rxd7 {[%clk 0:00:06.3]} 31... Bd4 {[%clk
0:00:59.9]} 32. Rxf7 {[%clk 0:00:04.5]} 32... Qxd1+ {[%clk 0:00:59.8]} 0-1

[Event "*** SCC Grand Prix: Titled Tuesday Blitz"]
[Site "Chess.com"]
[Date "2020.10.06"]
[Round "4"]
[White "GmSergioBarrientos"]
[Black "RestartingChess"]
[Result "1-0"]
[WhiteElo "2694"]
[BlackElo "2485"]
[TimeControl "180+1"]
[EndTime "10:38:06 PDT"]
[Termination "GmSergioBarrientos won by resignation"]

1. d4 {[%clk 0:03:00.9]} 1... b6 {[%clk 0:02:59.4]} 2. e4 {[%clk 0:02:59.9]}
2... Bb7 {[%clk 0:03:00]} 3. Bd3 {[%clk 0:02:59.6]} 3... e6 {[%clk 0:03:00.4]}
4. Nf3 {[%clk 0:02:59.4]} 4... c5 {[%clk 0:03:00.9]} 5. c3 {[%clk 0:02:59.2]}
5... cxd4 {[%clk 0:03:01.4]} 6. cxd4 {[%clk 0:02:59.2]} 6... d5 {[%clk
0:03:01.9]} 7. Nc3 {[%clk 0:02:56.6]} 7... dxe4 {[%clk 0:03:02]} 8. Nxe4 {[%clk
0:02:56.6]} 8... Nf6 {[%clk 0:03:02.2]} 9. Nc3 {[%clk 0:02:53.5]} 9... Bd6
{[%clk 0:02:59.5]} 10. O-O {[%clk 0:02:52.9]} 10... O-O {[%clk 0:02:59.1]} 11.
Bg5 {[%clk 0:02:52.7]} 11... Nbd7 {[%clk 0:02:59.5]} 12. Bc2 {[%clk 0:02:49.3]}
12... h6 {[%clk 0:02:59.8]} 13. Bh4 {[%clk 0:02:49]} 13... Qb8 {[%clk
0:02:55.6]} 14. Qd3 {[%clk 0:02:47.1]} 14... Bxf3 {[%clk 0:02:42]} 15. Qxf3
{[%clk 0:02:46.8]} 15... Bxh2+ {[%clk 0:02:42.4]} 16. Kh1 {[%clk 0:02:47.4]}
16... Bd6 {[%clk 0:02:42.9]} 17. Rad1 {[%clk 0:02:38.6]} 17... Qc8 {[%clk
0:02:27.7]} 18. Ba4 {[%clk 0:02:36.8]} 18... Rb8 {[%clk 0:01:59.8]} 19. Nb5
{[%clk 0:02:34.5]} 19... Be7 {[%clk 0:01:55.9]} 20. Bg3 {[%clk 0:02:30.8]} 20...
Qa6 {[%clk 0:01:48.8]} 21. Bxb8 {[%clk 0:02:20.3]} 21... Qxa4 {[%clk 0:01:48]}
22. Bd6 {[%clk 0:02:20]} 22... Bxd6 {[%clk 0:01:43.8]} 23. Nxd6 {[%clk
0:02:20.9]} 23... Qxa2 {[%clk 0:01:43.8]} 24. b3 {[%clk 0:02:14]} 24... a5
{[%clk 0:01:39.1]} 25. Nc4 {[%clk 0:02:04.4]} 25... Qc2 {[%clk 0:01:31.6]} 26.
Rd2 {[%clk 0:02:00]} 26... Qg6 {[%clk 0:01:31]} 27. Ne3 {[%clk 0:01:55.9]} 27...
Rc8 {[%clk 0:01:26.6]} 28. d5 {[%clk 0:01:47]} 28... exd5 {[%clk 0:01:01.7]} 29.
Nxd5 {[%clk 0:01:47.9]} 29... Nxd5 {[%clk 0:00:54.3]} 30. Rxd5 {[%clk
0:01:47.4]} 30... Nf6 {[%clk 0:00:47.1]} 31. Rd6 {[%clk 0:01:43.7]} 31... b5
{[%clk 0:00:37.1]} 32. Ra6 {[%clk 0:01:38.3]} 32... b4 {[%clk 0:00:30.8]} 33.
Rxa5 {[%clk 0:01:36.9]} 33... Rc3 {[%clk 0:00:31.5]} 34. Qf5 {[%clk 0:01:23.9]}
34... Qxf5 {[%clk 0:00:27.6]} 35. Rxf5 {[%clk 0:01:23.2]} 35... Rxb3 {[%clk
0:00:28.5]} 36. Rb5 {[%clk 0:01:23.2]} 36... Ne4 {[%clk 0:00:28.8]} 37. Kg1
{[%clk 0:01:19.4]} 37... Nc3 {[%clk 0:00:28.7]} 38. Rb7 {[%clk 0:01:16.4]} 38...
Ne2+ {[%clk 0:00:27.3]} 39. Kh2 {[%clk 0:01:16.3]} 39... Rb2 {[%clk 0:00:26.7]}
40. Rd1 {[%clk 0:01:08.4]} 40... Nc3 {[%clk 0:00:26.4]} 41. Rd8+ {[%clk
0:01:08.2]} 41... Kh7 {[%clk 0:00:26.4]} 42. Rxf7 {[%clk 0:01:08.7]} 42... b3
{[%clk 0:00:20.3]} 43. Rdd7 {[%clk 0:01:04]} 43... Rb1 {[%clk 0:00:19.6]} 44.
Rxg7+ {[%clk 0:01:03.8]} 44... Kh8 {[%clk 0:00:20.5]} 45. Rge7 {[%clk
0:01:03.4]} 1-0

[Event "*** SCC Grand Prix: Titled Tuesday Blitz"]
[Site "Chess.com"]
[Date "2020.10.06"]
[Round "4"]
[White "Margency"]
[Black "Smile2005"]
[Result "1-0"]
[WhiteElo "2647"]
[BlackElo "2415"]
[TimeControl "180+1"]
[EndTime "10:38:06 PDT"]
[Termination "Margency won by resignation"]

1. e4 {[%clk 0:03:00.9]} 1... d5 {[%clk 0:02:59.6]} 2. exd5 {[%clk 0:03:00.7]}
2... Nf6 {[%clk 0:02:59.9]} 3. Bb5+ {[%clk 0:03:00.5]} 3... Bd7 {[%clk
0:02:59.7]} 4. Be2 {[%clk 0:03:01]} 4... Nxd5 {[%clk 0:02:59.4]} 5. d4 {[%clk
0:03:01.6]} 5... Bf5 {[%clk 0:02:59.3]} 6. Nf3 {[%clk 0:03:01.6]} 6... e6 {[%clk
0:02:59.6]} 7. O-O {[%clk 0:03:01.4]} 7... Be7 {[%clk 0:02:59.8]} 8. a3 {[%clk
0:03:01.5]} 8... O-O {[%clk 0:02:59.7]} 9. c4 {[%clk 0:03:01.7]} 9... Nb6 {[%clk
0:03:00.1]} 10. h3 {[%clk 0:03:01.6]} 10... Nc6 {[%clk 0:03:00.2]} 11. Nc3
{[%clk 0:03:01.4]} 11... Bf6 {[%clk 0:03:00.2]} 12. Be3 {[%clk 0:03:01.7]} 12...
Qd7 {[%clk 0:03:00.4]} 13. b4 {[%clk 0:03:00.7]} 13... a6 {[%clk 0:03:00.3]} 14.
Qb3 {[%clk 0:03:00]} 14... Rad8 {[%clk 0:02:39.9]} 15. Rad1 {[%clk 0:02:59.6]}
15... Rfe8 {[%clk 0:02:38.3]} 16. d5 {[%clk 0:02:26.4]} 16... exd5 {[%clk
0:02:38.2]} 17. Bxb6 {[%clk 0:02:20.6]} 17... Bxc3 {[%clk 0:02:28.6]} 18. Rxd5
{[%clk 0:02:06.7]} 18... Qc8 {[%clk 0:02:26.7]} 19. Qxc3 {[%clk 0:01:51.9]}
19... Rxe2 {[%clk 0:02:20.7]} 20. Be3 {[%clk 0:01:38.5]} 20... Be6 {[%clk
0:02:20.7]} 21. Rdd1 {[%clk 0:01:21.8]} 21... Bf5 {[%clk 0:01:53.3]} 22. b5
{[%clk 0:01:06.5]} 22... Rc2 {[%clk 0:01:45.7]} 23. Qa1 {[%clk 0:00:59.8]} 23...
Na5 {[%clk 0:00:27.2]} 24. Rxd8+ {[%clk 0:00:45.3]} 24... Qxd8 {[%clk 0:00:28]}
25. Nd4 {[%clk 0:00:45.7]} 25... Bg6 {[%clk 0:00:14.5]} 26. Nxc2 {[%clk
0:00:44.8]} 26... Bxc2 {[%clk 0:00:15.3]} 27. Qc3 {[%clk 0:00:44.4]} 1-0

[Event "*** SCC Grand Prix: Titled Tuesday Blitz"]
[Site "Chess.com"]
[Date "2020.10.06"]
[Round "4"]
[White "AliKa2810"]
[Black "vladislavkovalev"]
[Result "0-1"]
[WhiteElo "2565"]
[BlackElo "2864"]
[TimeControl "180+1"]
[EndTime "10:38:08 PDT"]
[Termination "vladislavkovalev won by checkmate"]

1. d4 {[%clk 0:03:00.9]} 1... Nf6 {[%clk 0:03:00.3]} 2. c4 {[%clk 0:03:01.2]}
2... g6 {[%clk 0:03:01]} 3. Nc3 {[%clk 0:03:00.8]} 3... Bg7 {[%clk 0:03:01.8]}
4. e4 {[%clk 0:03:01.1]} 4... d6 {[%clk 0:03:02.6]} 5. h3 {[%clk 0:03:01.6]}
5... O-O {[%clk 0:03:03.2]} 6. Be3 {[%clk 0:03:02.2]} 6... c5 {[%clk 0:03:03.9]}
7. Nf3 {[%clk 0:03:01.8]} 7... cxd4 {[%clk 0:03:04.6]} 8. Nxd4 {[%clk
0:03:02.7]} 8... b6 {[%clk 0:03:05.4]} 9. Be2 {[%clk 0:03:00.7]} 9... Bb7 {[%clk
0:03:05.9]} 10. Qc2 {[%clk 0:03:01.3]} 10... Nbd7 {[%clk 0:03:04.5]} 11. O-O
{[%clk 0:02:14.8]} 11... Rc8 {[%clk 0:03:03.9]} 12. Rad1 {[%clk 0:02:11.8]}
12... a6 {[%clk 0:03:03.3]} 13. Rfe1 {[%clk 0:02:09.3]} 13... e6 {[%clk
0:03:01.7]} 14. f4 {[%clk 0:01:51.7]} 14... b5 {[%clk 0:02:49.7]} 15. cxb5
{[%clk 0:01:46.8]} 15... Bxe4 {[%clk 0:02:34.2]} 16. Qd2 {[%clk 0:01:46.4]}
16... axb5 {[%clk 0:02:33.6]} 17. Ndxb5 {[%clk 0:01:45.8]} 17... d5 {[%clk
0:02:31.7]} 18. Nd6 {[%clk 0:01:43.6]} 18... Rxc3 {[%clk 0:02:24.5]} 19. bxc3
{[%clk 0:01:39.3]} 19... Qe7 {[%clk 0:02:17.9]} 20. Nxe4 {[%clk 0:01:28.5]}
20... Nxe4 {[%clk 0:02:18.8]} 21. Qc2 {[%clk 0:01:29]} 21... Nxc3 {[%clk
0:02:00.9]} 22. Rd3 {[%clk 0:01:26.7]} 22... Rc8 {[%clk 0:01:57.8]} 23. Bf3
{[%clk 0:01:25.1]} 23... Qb4 {[%clk 0:01:49.8]} 24. Rc1 {[%clk 0:01:19.7]} 24...
Rc4 {[%clk 0:01:45.3]} 25. Qd2 {[%clk 0:01:10.9]} 25... Nc5 {[%clk 0:01:43.4]}
26. Bxc5 {[%clk 0:01:04]} 26... Qxc5+ {[%clk 0:01:38.7]} 27. Kh1 {[%clk
0:01:00.2]} 27... h5 {[%clk 0:01:32.4]} 28. Qe1 {[%clk 0:00:44.3]} 28... Bf6
{[%clk 0:01:12.3]} 29. a4 {[%clk 0:00:43.3]} 29... Nxa4 {[%clk 0:01:05.6]} 30.
Rxc4 {[%clk 0:00:40.4]} 30... Qxc4 {[%clk 0:01:06.5]} 31. Ra3 {[%clk 0:00:17.6]}
31... Qxf4 {[%clk 0:01:05.3]} 32. Qd1 {[%clk 0:00:11.3]} 32... Nc3 {[%clk
0:00:58.7]} 33. Ra8+ {[%clk 0:00:10.7]} 33... Kg7 {[%clk 0:00:58.9]} 34. Qc2
{[%clk 0:00:09.4]} 34... Be5 {[%clk 0:00:58.4]} 35. Kg1 {[%clk 0:00:09.4]} 35...
Qe3+ {[%clk 0:00:54.4]} 36. Kh1 {[%clk 0:00:09.3]} 36... Qe1# {[%clk 0:00:54]}
0-1

[Event "*** SCC Grand Prix: Titled Tuesday Blitz"]
[Site "Chess.com"]
[Date "2020.10.06"]
[Round "4"]
[White "GustavoJuarezF"]
[Black "VladaSviridova"]
[Result "0-1"]
[WhiteElo "2039"]
[BlackElo "2249"]
[TimeControl "180+1"]
[EndTime "10:38:10 PDT"]
[Termination "VladaSviridova won on time"]

1. e4 {[%clk 0:02:56.2]} 1... e6 {[%clk 0:03:00.1]} 2. d4 {[%clk 0:02:50.6]}
2... d5 {[%clk 0:03:01]} 3. e5 {[%clk 0:02:45.5]} 3... c5 {[%clk 0:03:00.5]} 4.
c3 {[%clk 0:02:42.3]} 4... Qb6 {[%clk 0:03:00.6]} 5. Nf3 {[%clk 0:02:42.2]} 5...
Nc6 {[%clk 0:03:00.5]} 6. dxc5 {[%clk 0:02:38]} 6... Bxc5 {[%clk 0:02:59.6]} 7.
Qc2 {[%clk 0:02:34.9]} 7... Bd7 {[%clk 0:02:54]} 8. Bd3 {[%clk 0:02:34.1]} 8...
h6 {[%clk 0:02:49.5]} 9. O-O {[%clk 0:02:33.6]} 9... a5 {[%clk 0:02:44.8]} 10.
a4 {[%clk 0:02:31.4]} 10... Nge7 {[%clk 0:02:40.9]} 11. Na3 {[%clk 0:02:30.7]}
11... O-O {[%clk 0:02:36.9]} 12. Nb5 {[%clk 0:02:30.2]} 12... Na7 {[%clk
0:02:18.5]} 13. Nxa7 {[%clk 0:02:23]} 13... Qxa7 {[%clk 0:02:18]} 14. Qe2 {[%clk
0:02:22.2]} 14... Nc6 {[%clk 0:02:02.7]} 15. Bc2 {[%clk 0:02:19.7]} 15... Qb8
{[%clk 0:01:52.3]} 16. Qd3 {[%clk 0:02:19.2]} 16... f5 {[%clk 0:01:34.3]} 17.
exf6 {[%clk 0:02:17.6]} 17... Rxf6 {[%clk 0:01:34.1]} 18. Qh7+ {[%clk
0:02:16.3]} 18... Kf7 {[%clk 0:01:32.7]} 19. Nh4 {[%clk 0:02:01.3]} 19... Ne7
{[%clk 0:01:32]} 20. b4 {[%clk 0:01:43.3]} 20... axb4 {[%clk 0:01:07.1]} 21.
cxb4 {[%clk 0:01:41.8]} 21... Qe5 {[%clk 0:01:05.7]} 22. Ra3 {[%clk 0:01:37.2]}
22... Bxf2+ {[%clk 0:01:00.3]} 23. Kh1 {[%clk 0:01:23.7]} 23... Bxh4 {[%clk
0:01:00]} 24. Rxf6+ {[%clk 0:01:14.7]} 24... Bxf6 {[%clk 0:00:59.7]} 25. Re3
{[%clk 0:00:45]} 25... Qf4 {[%clk 0:00:54.2]} 26. Re1 {[%clk 0:00:41.9]} 26...
Qc4 {[%clk 0:00:51.7]} 27. Bd3 {[%clk 0:00:26]} 27... Qc3 {[%clk 0:00:47.9]} 28.
Rf1 {[%clk 0:00:21.3]} 28... Rc8 {[%clk 0:00:43.2]} 29. Rxf6+ {[%clk 0:00:18.6]}
29... Qxf6 {[%clk 0:00:41.9]} 0-1

[Event "*** SCC Grand Prix: Titled Tuesday Blitz"]
[Site "Chess.com"]
[Date "2020.10.06"]
[Round "4"]
[White "QuintilianoR"]
[Black "kirillgenius"]
[Result "0-1"]
[WhiteElo "2578"]
[BlackElo "2345"]
[TimeControl "180+1"]
[EndTime "10:38:11 PDT"]
[Termination "kirillgenius won on time"]

1. d4 {[%clk 0:03:00.9]} 1... Nf6 {[%clk 0:02:59.5]} 2. c4 {[%clk 0:03:01.3]}
2... c5 {[%clk 0:02:59.5]} 3. d5 {[%clk 0:03:00.7]} 3... e5 {[%clk 0:02:59.7]}
4. Nc3 {[%clk 0:02:59.6]} 4... d6 {[%clk 0:03:00]} 5. e4 {[%clk 0:02:59.4]} 5...
Be7 {[%clk 0:03:00.4]} 6. Nf3 {[%clk 0:02:52.8]} 6... O-O {[%clk 0:03:00.3]} 7.
h3 {[%clk 0:02:53]} 7... Ne8 {[%clk 0:03:00]} 8. Bd3 {[%clk 0:02:52.5]} 8... Nd7
{[%clk 0:03:00]} 9. Qe2 {[%clk 0:02:51.2]} 9... g6 {[%clk 0:02:56.2]} 10. Bh6
{[%clk 0:02:50]} 10... Ng7 {[%clk 0:02:54.6]} 11. g4 {[%clk 0:02:43.7]} 11...
Nf6 {[%clk 0:02:50.6]} 12. O-O-O {[%clk 0:02:41.9]} 12... a6 {[%clk 0:02:46.8]}
13. Rdg1 {[%clk 0:02:27.8]} 13... Bd7 {[%clk 0:02:44.7]} 14. Nd2 {[%clk
0:02:24.2]} 14... Kh8 {[%clk 0:02:29]} 15. h4 {[%clk 0:02:21.4]} 15... Ng8
{[%clk 0:02:28.5]} 16. Be3 {[%clk 0:02:20.9]} 16... f5 {[%clk 0:02:22.2]} 17.
gxf5 {[%clk 0:01:36.3]} 17... gxf5 {[%clk 0:02:23.1]} 18. Rxg7 {[%clk
0:01:34.8]} 18... Kxg7 {[%clk 0:02:20.4]} 19. exf5 {[%clk 0:01:34.9]} 19... Kh8
{[%clk 0:02:11.5]} 20. Qh5 {[%clk 0:00:56.3]} 20... Nf6 {[%clk 0:02:09.9]} 21.
Qf3 {[%clk 0:00:55.6]} 21... b5 {[%clk 0:02:06.6]} 22. Bg5 {[%clk 0:00:54.4]}
22... Qa5 {[%clk 0:01:54.6]} 23. Kb1 {[%clk 0:00:53.8]} 23... Rab8 {[%clk
0:01:51.6]} 24. Rg1 {[%clk 0:00:20.8]} 24... bxc4 {[%clk 0:01:42.6]} 25. Nxc4
{[%clk 0:00:20.3]} 25... Qxc3 {[%clk 0:01:38.2]} 26. Bh6 {[%clk 0:00:05.5]}
26... Rf7 {[%clk 0:01:22.7]} 27. Qg3 {[%clk 0:00:05.4]} 27... Rg8 {[%clk
0:00:44.7]} 28. Qxg8+ {[%clk 0:00:02.6]} 28... Nxg8 {[%clk 0:00:44.8]} 29. bxc3
{[%clk 0:00:03.5]} 29... Nxh6 {[%clk 0:00:44.7]} 0-1

[Event "*** SCC Grand Prix: Titled Tuesday Blitz"]
[Site "Chess.com"]
[Date "2020.10.06"]
[Round "4"]
[White "mapleaff"]
[Black "stanyga"]
[Result "0-1"]
[WhiteElo "2367"]
[BlackElo "2608"]
[TimeControl "180+1"]
[EndTime "10:38:15 PDT"]
[Termination "stanyga won on time"]

1. d4 {[%clk 0:03:00.9]} 1... Nf6 {[%clk 0:02:59.1]} 2. c4 {[%clk 0:03:00.3]}
2... e6 {[%clk 0:02:58.5]} 3. g3 {[%clk 0:02:59.7]} 3... d5 {[%clk 0:02:56.4]}
4. Bg2 {[%clk 0:02:59.3]} 4... dxc4 {[%clk 0:02:56.6]} 5. Nf3 {[%clk 0:02:54.6]}
5... Bb4+ {[%clk 0:02:55.9]} 6. Nbd2 {[%clk 0:02:47.7]} 6... b5 {[%clk 0:02:51]}
7. O-O {[%clk 0:02:43.3]} 7... Bb7 {[%clk 0:02:49.3]} 8. a4 {[%clk 0:02:41.3]}
8... a6 {[%clk 0:02:42.5]} 9. Qc2 {[%clk 0:02:40.7]} 9... O-O {[%clk 0:02:38.1]}
10. e4 {[%clk 0:02:23.1]} 10... Bxd2 {[%clk 0:02:34.2]} 11. Nxd2 {[%clk
0:02:22.5]} 11... Qxd4 {[%clk 0:02:32.3]} 12. axb5 {[%clk 0:02:22.1]} 12... axb5
{[%clk 0:02:31.8]} 13. Rxa8 {[%clk 0:02:23]} 13... Bxa8 {[%clk 0:02:31.9]} 14.
b4 {[%clk 0:02:02.4]} 14... Rd8 {[%clk 0:02:23.3]} 15. h3 {[%clk 0:01:43.8]}
15... Nc6 {[%clk 0:02:19]} 16. Nf3 {[%clk 0:01:34.9]} 16... Qxe4 {[%clk
0:02:09.6]} 17. Qb2 {[%clk 0:01:33.6]} 17... Nd4 {[%clk 0:01:55.7]} 18. Nh4
{[%clk 0:01:25.1]} 18... c3 {[%clk 0:01:39.6]} 19. Qa1 {[%clk 0:01:09.9]} 19...
Ne2+ {[%clk 0:01:00.7]} 20. Kh2 {[%clk 0:01:08.4]} 20... Qd3 {[%clk 0:00:55.3]}
21. Bxa8 {[%clk 0:00:48.3]} 21... Nxg3 {[%clk 0:00:54.7]} 22. Rg1 {[%clk
0:00:40.9]} 22... Ne2 {[%clk 0:00:54.2]} 23. Rg2 {[%clk 0:00:27]} 23... Qd6+
{[%clk 0:00:51.1]} 24. f4 {[%clk 0:00:23.3]} 24... Nxf4 {[%clk 0:00:49.3]} 25.
Bxf4 {[%clk 0:00:04.7]} 25... Qxf4+ {[%clk 0:00:49.1]} 26. Rg3 {[%clk
0:00:05.6]} 26... Nh5 {[%clk 0:00:37.1]} 0-1

[Event "*** SCC Grand Prix: Titled Tuesday Blitz"]
[Site "Chess.com"]
[Date "2020.10.06"]
[Round "4"]
[White "WPWPWP-2015"]
[Black "ChronicUnhappiness"]
[Result "1-0"]
[WhiteElo "2449"]
[BlackElo "2273"]
[TimeControl "180+1"]
[EndTime "10:38:16 PDT"]
[Termination "WPWPWP-2015 won on time"]

1. e4 {[%clk 0:03:00.9]} 1... c5 {[%clk 0:02:59.5]} 2. Nf3 {[%clk 0:02:59.6]}
2... Nc6 {[%clk 0:02:59.8]} 3. d4 {[%clk 0:02:58.7]} 3... cxd4 {[%clk
0:02:59.9]} 4. Nxd4 {[%clk 0:02:57.1]} 4... Nf6 {[%clk 0:03:00.2]} 5. Nc3 {[%clk
0:02:56.3]} 5... e5 {[%clk 0:03:00.5]} 6. Ndb5 {[%clk 0:02:55.2]} 6... d6 {[%clk
0:03:00.4]} 7. Bg5 {[%clk 0:02:53.8]} 7... a6 {[%clk 0:03:00.1]} 8. Na3 {[%clk
0:02:52.3]} 8... b5 {[%clk 0:03:00.2]} 9. Nd5 {[%clk 0:02:51.3]} 9... Be7 {[%clk
0:02:59.8]} 10. Bxf6 {[%clk 0:02:50.7]} 10... Bxf6 {[%clk 0:03:00.1]} 11. c4
{[%clk 0:02:49.8]} 11... b4 {[%clk 0:03:00.1]} 12. Nc2 {[%clk 0:02:48.7]} 12...
O-O {[%clk 0:03:00.3]} 13. Be2 {[%clk 0:02:47.3]} 13... a5 {[%clk 0:02:57.4]}
14. O-O {[%clk 0:02:45.9]} 14... Be6 {[%clk 0:02:12.4]} 15. Bg4 {[%clk
0:02:40.9]} 15... Bg5 {[%clk 0:01:55.6]} 16. b3 {[%clk 0:02:35.1]} 16... g6
{[%clk 0:01:55]} 17. g3 {[%clk 0:02:26]} 17... h5 {[%clk 0:01:23.4]} 18. Bxe6
{[%clk 0:02:12]} 18... fxe6 {[%clk 0:01:24.3]} 19. Nde3 {[%clk 0:02:10.2]} 19...
Bxe3 {[%clk 0:00:57.2]} 20. Nxe3 {[%clk 0:02:05.2]} 20... Nd4 {[%clk 0:00:57]}
21. f4 {[%clk 0:02:01.7]} 21... Qb6 {[%clk 0:00:53.1]} 22. Kh1 {[%clk
0:01:51.4]} 22... a4 {[%clk 0:00:34.4]} 23. Ng2 {[%clk 0:01:25.2]} 23... axb3
{[%clk 0:00:30.2]} 24. axb3 {[%clk 0:01:26.1]} 24... Ra3 {[%clk 0:00:25.8]} 25.
Nh4 {[%clk 0:01:19.4]} 25... exf4 {[%clk 0:00:09.5]} 26. Nxg6 {[%clk 0:01:15.5]}
26... Rf6 {[%clk 0:00:09.8]} 27. Qxh5 {[%clk 0:01:14.1]} 27... Kg7 {[%clk
0:00:09.6]} 28. Nxf4 {[%clk 0:00:58.1]} 28... Rxa1 {[%clk 0:00:09.5]} 29. Rxa1
{[%clk 0:00:53.3]} 29... Rh6 {[%clk 0:00:05.7]} 30. Qg5+ {[%clk 0:00:49]} 30...
Kh7 {[%clk 0:00:04.6]} 31. Qe7+ {[%clk 0:00:48.4]} 31... Kh8 {[%clk 0:00:03.9]}
32. Qf8+ {[%clk 0:00:47.3]} 32... Kh7 {[%clk 0:00:03.5]} 33. Qf7+ {[%clk
0:00:47.3]} 33... Kh8 {[%clk 0:00:02.6]} 34. Ra8+ {[%clk 0:00:46.4]} 1-0

[Event "*** SCC Grand Prix: Titled Tuesday Blitz"]
[Site "Chess.com"]
[Date "2020.10.06"]
[Round "4"]
[White "Pultis"]
[Black "jefferyx"]
[Result "0-1"]
[WhiteElo "2749"]
[BlackElo "2907"]
[TimeControl "180+1"]
[EndTime "10:38:17 PDT"]
[Termination "jefferyx won by resignation"]

1. Nf3 {[%clk 0:03:00.9]} 1... c5 {[%clk 0:02:59.2]} 2. c4 {[%clk 0:02:59.8]}
2... Nc6 {[%clk 0:02:59.6]} 3. Nc3 {[%clk 0:02:59.4]} 3... g6 {[%clk 0:02:59.8]}
4. e3 {[%clk 0:02:59.3]} 4... Nf6 {[%clk 0:03:00.4]} 5. d4 {[%clk 0:02:59.6]}
5... cxd4 {[%clk 0:03:01.3]} 6. exd4 {[%clk 0:03:00.2]} 6... d5 {[%clk
0:03:01.9]} 7. cxd5 {[%clk 0:03:00.7]} 7... Nxd5 {[%clk 0:03:02.8]} 8. Qb3
{[%clk 0:03:01]} 8... Nxc3 {[%clk 0:03:03.2]} 9. Bc4 {[%clk 0:03:01.3]} 9... e6
{[%clk 0:03:03.8]} 10. bxc3 {[%clk 0:02:59.3]} 10... Bg7 {[%clk 0:03:04.4]} 11.
O-O {[%clk 0:02:45.6]} 11... O-O {[%clk 0:03:04.4]} 12. Be2 {[%clk 0:02:33.4]}
12... b6 {[%clk 0:03:04.6]} 13. Bg5 {[%clk 0:02:30.2]} 13... Qc7 {[%clk
0:03:04.5]} 14. Rac1 {[%clk 0:02:29.9]} 14... Bb7 {[%clk 0:03:04.8]} 15. Rfd1
{[%clk 0:02:29.8]} 15... Na5 {[%clk 0:03:02]} 16. Qb1 {[%clk 0:02:23.6]} 16...
Rac8 {[%clk 0:03:02.9]} 17. Bh4 {[%clk 0:02:19]} 17... Bd5 {[%clk 0:03:00.8]}
18. Ba6 {[%clk 0:02:05.2]} 18... Bb7 {[%clk 0:02:43.1]} 19. Be2 {[%clk
0:02:02.8]} 19... Nc4 {[%clk 0:02:40.9]} 20. Bg3 {[%clk 0:01:54]} 20... Qe7
{[%clk 0:02:40.8]} 21. Bh4 {[%clk 0:00:51.3]} 21... Qd6 {[%clk 0:02:40.4]} 22.
Bg3 {[%clk 0:00:51.5]} 22... Qd5 {[%clk 0:02:40.5]} 23. Ne1 {[%clk 0:00:51.3]}
23... Bh6 {[%clk 0:02:38.6]} 24. Bf3 {[%clk 0:00:50.5]} 24... Qd7 {[%clk
0:02:38.6]} 25. Bxb7 {[%clk 0:00:30.6]} 25... Qxb7 {[%clk 0:02:39.5]} 26. f4
{[%clk 0:00:28.8]} 26... Rfd8 {[%clk 0:02:40.1]} 27. Nf3 {[%clk 0:00:27.3]}
27... Bf8 {[%clk 0:02:40.6]} 28. Re1 {[%clk 0:00:23.8]} 28... Rd5 {[%clk
0:02:35.6]} 29. Rcd1 {[%clk 0:00:23.6]} 29... Ra5 {[%clk 0:02:27]} 30. Qc2
{[%clk 0:00:20.3]} 30... Qd5 {[%clk 0:02:26.8]} 31. Qe2 {[%clk 0:00:18.1]} 31...
Nd6 {[%clk 0:02:25.5]} 32. Ne5 {[%clk 0:00:16.4]} 32... Rxa2 {[%clk 0:02:14.8]}
33. Rd2 {[%clk 0:00:15.8]} 33... Rxd2 {[%clk 0:02:13.6]} 34. Qxd2 {[%clk
0:00:16.7]} 34... Ne4 {[%clk 0:02:14]} 35. Qd3 {[%clk 0:00:17.2]} 35... Nxc3
{[%clk 0:02:12.4]} 36. Bh4 {[%clk 0:00:16.3]} 36... Nb5 {[%clk 0:02:11.8]} 37.
Rd1 {[%clk 0:00:14.7]} 37... Nxd4 {[%clk 0:02:10.8]} 38. Ng4 {[%clk 0:00:13.1]}
38... Qc4 {[%clk 0:01:42.7]} 39. Nf6+ {[%clk 0:00:04.9]} 39... Kh8 {[%clk
0:01:40.3]} 40. Qh3 {[%clk 0:00:04.4]} 40... Ne2+ {[%clk 0:01:29.5]} 41. Kh1
{[%clk 0:00:04.5]} 41... Qd4 {[%clk 0:01:19.5]} 42. Re1 {[%clk 0:00:01.6]} 42...
Nxf4 {[%clk 0:01:19.2]} 43. Qg4 {[%clk 0:00:01.4]} 43... Bg7 {[%clk 0:01:13.6]}
44. Ne4 {[%clk 0:00:01.4]} 44... Nd3 {[%clk 0:01:12.8]} 45. Bf2 {[%clk
0:00:02.3]} 45... Qxf2 {[%clk 0:01:09.5]} 46. Nxf2 {[%clk 0:00:03.2]} 46...
Nxf2+ {[%clk 0:01:10.3]} 0-1